[Event "*** SCC Grand Prix: Titled Tuesday Blitz"]
[Site "Chess.com"]
[Date "2020.08.25"]
[Round "8"]
[White "varacalli"]
[Black "phoenix_sjh"]
[Result "1-0"]
[WhiteElo "2411"]
[BlackElo "2507"]
[TimeControl "180+1"]
[EndTime "11:36:32 PDT"]
[Termination "varacalli won on time"]

1. e4 {[%clk 0:03:00.9]} 1... e6 {[%clk 0:03:00]} 2. d4 {[%clk 0:03:00.2]} 2...
d5 {[%clk 0:03:00]} 3. Nd2 {[%clk 0:03:00.6]} 3... Nf6 {[%clk 0:03:00]} 4. e5
{[%clk 0:02:58.8]} 4... Nfd7 {[%clk 0:03:00.1]} 5. c3 {[%clk 0:02:59.1]} 5... c5
{[%clk 0:03:00.6]} 6. Bd3 {[%clk 0:02:59.6]} 6... b6 {[%clk 0:03:00.7]} 7. Ne2
{[%clk 0:02:59]} 7... Ba6 {[%clk 0:03:00.9]} 8. Bxa6 {[%clk 0:02:59]} 8... Nxa6
{[%clk 0:03:01.8]} 9. Nf3 {[%clk 0:02:59.8]} 9... Be7 {[%clk 0:03:01.9]} 10. h4
{[%clk 0:02:59.8]} 10... O-O {[%clk 0:02:58.7]} 11. h5 {[%clk 0:02:59.7]} 11...
b5 {[%clk 0:02:53.5]} 12. Rh3 {[%clk 0:02:56.1]} 12... Nc7 {[%clk 0:02:23.1]}
13. Rg3 {[%clk 0:02:53.8]} 13... Kh8 {[%clk 0:02:23.1]} 14. Bg5 {[%clk
0:02:48.3]} 14... f6 {[%clk 0:02:22.3]} 15. exf6 {[%clk 0:02:45.9]} 15... Nxf6
{[%clk 0:02:20.7]} 16. Bxf6 {[%clk 0:02:32]} 16... Bxf6 {[%clk 0:02:20.2]} 17.
Kf1 {[%clk 0:02:29]} 17... c4 {[%clk 0:02:00.1]} 18. Kg1 {[%clk 0:02:18.7]}
18... a5 {[%clk 0:01:59.3]} 19. Qd2 {[%clk 0:02:13.3]} 19... Qd6 {[%clk
0:01:48.1]} 20. Re1 {[%clk 0:02:10.9]} 20... Rae8 {[%clk 0:01:42]} 21. Nf4
{[%clk 0:02:07]} 21... Kg8 {[%clk 0:01:32.3]} 22. Ne5 {[%clk 0:02:02.7]} 22...
Bxe5 {[%clk 0:01:18]} 23. Rxe5 {[%clk 0:02:02.5]} 23... Rf6 {[%clk 0:01:16.9]}
24. Nh3 {[%clk 0:01:55.2]} 24... Ref8 {[%clk 0:01:12.2]} 25. Qg5 {[%clk
0:01:54.4]} 25... R8f7 {[%clk 0:00:57.3]} 26. f3 {[%clk 0:01:51.3]} 26... h6
{[%clk 0:00:49.4]} 27. Qe3 {[%clk 0:01:42.6]} 27... Qf8 {[%clk 0:00:44.4]} 28.
Nf2 {[%clk 0:01:40.6]} 28... Rf5 {[%clk 0:00:41.7]} 29. Ng4 {[%clk 0:01:32.7]}
29... Kh8 {[%clk 0:00:38.4]} 30. Rxf5 {[%clk 0:01:28.8]} 30... Rxf5 {[%clk
0:00:34.9]} 31. Ne5 {[%clk 0:01:27.3]} 31... Qf6 {[%clk 0:00:29.9]} 32. Rg6
{[%clk 0:01:20.2]} 32... Qh4 {[%clk 0:00:23.4]} 33. Rxh6+ {[%clk 0:01:16]} 33...
Kg8 {[%clk 0:00:18.6]} 34. Rh8+ {[%clk 0:01:16.1]} 34... Kxh8 {[%clk 0:00:17.6]}
35. Ng6+ {[%clk 0:01:16.3]} 35... Kh7 {[%clk 0:00:12.7]} 36. Nxh4 {[%clk
0:01:17.2]} 36... Rxh5 {[%clk 0:00:12.8]} 37. g3 {[%clk 0:01:14]} 37... g5
{[%clk 0:00:11.7]} 38. Qe5 {[%clk 0:01:11.7]} 38... Ne8 {[%clk 0:00:11.8]} 39.
Qxe6 {[%clk 0:01:09.8]} 39... Ng7 {[%clk 0:00:11.9]} 40. Qxd5 {[%clk 0:01:05.4]}
40... gxh4 {[%clk 0:00:12.3]} 41. Qd6 {[%clk 0:01:00.2]} 41... hxg3 {[%clk
0:00:11]} 42. Qxg3 {[%clk 0:01:01.1]} 42... Rh6 {[%clk 0:00:10.5]} 43. Qf4
{[%clk 0:01:00]} 43... Rg6+ {[%clk 0:00:09]} 44. Kf2 {[%clk 0:01:00.2]} 44...
Kg8 {[%clk 0:00:05.6]} 45. d5 {[%clk 0:01:00.1]} 45... Ne8 {[%clk 0:00:04.4]}
46. Qe5 {[%clk 0:00:58.8]} 46... Kf8 {[%clk 0:00:04.1]} 47. f4 {[%clk 0:00:59]}
47... Rf6 {[%clk 0:00:03.6]} 48. f5 {[%clk 0:00:58.9]} 48... Kf7 {[%clk
0:00:03.9]} 49. Kg2 {[%clk 0:00:56.5]} 49... Nd6 {[%clk 0:00:04.1]} 50. Qe3
{[%clk 0:00:51.5]} 50... Rxf5 {[%clk 0:00:02.7]} 51. Qe6+ {[%clk 0:00:50.1]} 1-0

[Event "*** SCC Grand Prix: Titled Tuesday Blitz"]
[Site "Chess.com"]
[Date "2020.08.25"]
[Round "8"]
[White "Artyom_ChessMate"]
[Black "ChristopherYoo"]
[Result "0-1"]
[WhiteElo "2574"]
[BlackElo "2825"]
[TimeControl "180+1"]
[EndTime "11:36:36 PDT"]
[Termination "ChristopherYoo won by resignation"]

1. e4 {[%clk 0:03:00.9]} 1... e6 {[%clk 0:02:59.9]} 2. d4 {[%clk 0:02:59.4]}
2... d5 {[%clk 0:02:59.7]} 3. Bd3 {[%clk 0:02:59.6]} 3... c5 {[%clk 0:02:57.8]}
4. exd5 {[%clk 0:02:56.5]} 4... exd5 {[%clk 0:02:57]} 5. Nf3 {[%clk 0:02:56.5]}
5... Nf6 {[%clk 0:02:56.6]} 6. O-O {[%clk 0:02:56.1]} 6... c4 {[%clk 0:02:56.4]}
7. Be2 {[%clk 0:02:56.1]} 7... Be7 {[%clk 0:02:43.8]} 8. b3 {[%clk 0:02:57]}
8... cxb3 {[%clk 0:02:43.3]} 9. axb3 {[%clk 0:02:57.9]} 9... O-O {[%clk
0:02:43.8]} 10. c4 {[%clk 0:02:57.2]} 10... Nc6 {[%clk 0:02:38.9]} 11. Nc3
{[%clk 0:02:56.9]} 11... Bg4 {[%clk 0:02:36.6]} 12. Be3 {[%clk 0:02:53.2]} 12...
Bb4 {[%clk 0:02:24.6]} 13. Rc1 {[%clk 0:02:18.2]} 13... Re8 {[%clk 0:02:18.4]}
14. Nxd5 {[%clk 0:02:06.5]} 14... Nxd5 {[%clk 0:02:16.5]} 15. cxd5 {[%clk
0:02:07.4]} 15... Qxd5 {[%clk 0:02:17]} 16. Bc4 {[%clk 0:02:07.7]} 16... Qd7
{[%clk 0:02:09.3]} 17. h3 {[%clk 0:01:46.8]} 17... Bh5 {[%clk 0:02:06.5]} 18. d5
{[%clk 0:01:15.5]} 18... Bxf3 {[%clk 0:01:48.4]} 19. Qxf3 {[%clk 0:00:44.6]}
19... Ne5 {[%clk 0:01:47.3]} 20. Qh5 {[%clk 0:00:41.2]} 20... Bd6 {[%clk
0:01:27.6]} 21. Bd4 {[%clk 0:00:36.6]} 21... Ng6 {[%clk 0:00:58.4]} 22. Rfe1
{[%clk 0:00:32.8]} 22... h6 {[%clk 0:00:38.8]} 23. Qg4 {[%clk 0:00:24.1]} 23...
Qd8 {[%clk 0:00:28.1]} 24. Bd3 {[%clk 0:00:23.6]} 24... Ne5 {[%clk 0:00:21.5]}
25. Bxe5 {[%clk 0:00:10.1]} 25... Bxe5 {[%clk 0:00:22.4]} 26. Be4 {[%clk
0:00:09.9]} 26... Qd6 {[%clk 0:00:21.6]} 27. g3 {[%clk 0:00:08.9]} 27... a5
{[%clk 0:00:18.5]} 28. Kg2 {[%clk 0:00:09.2]} 28... g6 {[%clk 0:00:16.4]} 29. h4
{[%clk 0:00:09.1]} 29... Bg7 {[%clk 0:00:15.2]} 30. h5 {[%clk 0:00:08.4]} 30...
f5 {[%clk 0:00:13.9]} 31. Bxf5 {[%clk 0:00:05.7]} 31... gxf5 {[%clk 0:00:14.8]}
32. Qxf5 {[%clk 0:00:06.6]} 32... Rad8 {[%clk 0:00:14.8]} 33. Re6 {[%clk
0:00:05.5]} 33... Qd7 {[%clk 0:00:07.5]} 34. Rce1 {[%clk 0:00:03.3]} 34... Rf8
{[%clk 0:00:06.7]} 35. Qg4 {[%clk 0:00:02.9]} 35... Qxd5+ {[%clk 0:00:06.1]} 36.
Kh2 {[%clk 0:00:02.4]} 36... Rxf2+ {[%clk 0:00:05.6]} 37. Kh3 {[%clk 0:00:02.2]}
37... Qg2+ {[%clk 0:00:05.8]} 0-1

[Event "*** SCC Grand Prix: Titled Tuesday Blitz"]
[Site "Chess.com"]
[Date "2020.08.25"]
[Round "8"]
[White "chessdjw"]
[Black "Angel_Hranitel_37"]
[Result "1-0"]
[WhiteElo "2595"]
[BlackElo "2454"]
[TimeControl "180+1"]
[EndTime "11:36:36 PDT"]
[Termination "chessdjw won by checkmate"]

1. d4 {[%clk 0:03:00.9]} 1... Nf6 {[%clk 0:03:00]} 2. c4 {[%clk 0:03:01.4]} 2...
e6 {[%clk 0:02:59.7]} 3. Nc3 {[%clk 0:03:01.3]} 3... Bb4 {[%clk 0:02:59.8]} 4.
e3 {[%clk 0:03:01.2]} 4... O-O {[%clk 0:02:59.2]} 5. Ne2 {[%clk 0:03:00.1]} 5...
b6 {[%clk 0:02:58.5]} 6. a3 {[%clk 0:03:00.2]} 6... Be7 {[%clk 0:02:48.3]} 7.
Nf4 {[%clk 0:03:00.5]} 7... d5 {[%clk 0:02:47.4]} 8. cxd5 {[%clk 0:03:00]} 8...
exd5 {[%clk 0:02:48.3]} 9. Bd3 {[%clk 0:02:58.6]} 9... Ba6 {[%clk 0:02:48.3]}
10. O-O {[%clk 0:02:55.4]} 10... Bxd3 {[%clk 0:02:47.7]} 11. Qxd3 {[%clk
0:02:54.4]} 11... c6 {[%clk 0:02:44]} 12. f3 {[%clk 0:02:53]} 12... Nbd7 {[%clk
0:02:42.3]} 13. e4 {[%clk 0:02:48.4]} 13... c5 {[%clk 0:01:53.6]} 14. Ncxd5
{[%clk 0:02:30.2]} 14... Nxd5 {[%clk 0:01:47.1]} 15. Nxd5 {[%clk 0:02:29.3]}
15... cxd4 {[%clk 0:01:47.3]} 16. Nxe7+ {[%clk 0:02:28.8]} 16... Qxe7 {[%clk
0:01:48.2]} 17. Qxd4 {[%clk 0:02:28.8]} 17... Rfd8 {[%clk 0:01:47.7]} 18. Be3
{[%clk 0:02:13.7]} 18... Nc5 {[%clk 0:01:46.5]} 19. Qc3 {[%clk 0:02:11.1]} 19...
Rac8 {[%clk 0:01:41.9]} 20. Qe1 {[%clk 0:01:45.9]} 20... Nd3 {[%clk 0:01:16.9]}
21. Qe2 {[%clk 0:01:43.8]} 21... Qf6 {[%clk 0:01:16.7]} 22. Rab1 {[%clk
0:01:37.9]} 22... Nf4 {[%clk 0:01:13.5]} 23. Bxf4 {[%clk 0:01:34.8]} 23... Qxf4
{[%clk 0:01:14.4]} 24. Rfd1 {[%clk 0:01:34.9]} 24... h5 {[%clk 0:01:12.9]} 25.
Rxd8+ {[%clk 0:01:32.2]} 25... Rxd8 {[%clk 0:01:13.8]} 26. Rd1 {[%clk
0:01:32.3]} 26... Rc8 {[%clk 0:01:07.4]} 27. g3 {[%clk 0:01:29.2]} 27... Qc7
{[%clk 0:00:57.8]} 28. Kg2 {[%clk 0:01:14.6]} 28... g6 {[%clk 0:00:52]} 29. e5
{[%clk 0:01:01.1]} 29... Qc2 {[%clk 0:00:27.3]} 30. Rd2 {[%clk 0:00:53.7]} 30...
Qf5 {[%clk 0:00:26.4]} 31. Qe3 {[%clk 0:00:40]} 31... h4 {[%clk 0:00:19.8]} 32.
g4 {[%clk 0:00:38.8]} 32... Qe6 {[%clk 0:00:17.7]} 33. Qg5 {[%clk 0:00:36.7]}
33... Kg7 {[%clk 0:00:15.2]} 34. Rd6 {[%clk 0:00:32.6]} 34... Rc2+ {[%clk
0:00:09.2]} 35. Kh3 {[%clk 0:00:32.6]} 35... Qb3 {[%clk 0:00:03.1]} 36. Qf6+
{[%clk 0:00:31.8]} 36... Kh7 {[%clk 0:00:03.7]} 37. Qxh4+ {[%clk 0:00:28.8]}
37... Kg7 {[%clk 0:00:04.1]} 38. Qf6+ {[%clk 0:00:27.6]} 38... Kh7 {[%clk
0:00:04.7]} 39. Rd8 {[%clk 0:00:27.1]} 39... Rxh2+ {[%clk 0:00:03.3]} 40. Kxh2
{[%clk 0:00:26.5]} 40... Qxb2+ {[%clk 0:00:04.2]} 41. Kh3 {[%clk 0:00:24.8]}
41... g5 {[%clk 0:00:03.5]} 42. Rh8# {[%clk 0:00:23.9]} 1-0

[Event "*** SCC Grand Prix: Titled Tuesday Blitz"]
[Site "Chess.com"]
[Date "2020.08.25"]
[Round "8"]
[White "bascheyaro"]
[Black "seorobert1971"]
[Result "0-1"]
[WhiteElo "2749"]
[BlackElo "2655"]
[TimeControl "180+1"]
[EndTime "11:36:37 PDT"]
[Termination "seorobert1971 won by resignation"]

1. d4 {[%clk 0:03:00.9]} 1... Nf6 {[%clk 0:02:59.9]} 2. Nc3 {[%clk 0:02:59.1]}
2... e6 {[%clk 0:03:00.8]} 3. e4 {[%clk 0:02:58.1]} 3... d5 {[%clk 0:03:00.8]}
4. e5 {[%clk 0:02:58.1]} 4... Nfd7 {[%clk 0:03:01]} 5. f4 {[%clk 0:02:58.5]}
5... c5 {[%clk 0:03:01.3]} 6. Nf3 {[%clk 0:02:58.7]} 6... Be7 {[%clk 0:03:01.5]}
7. Bd3 {[%clk 0:02:58.5]} 7... Nc6 {[%clk 0:02:59.7]} 8. O-O {[%clk 0:02:57.9]}
8... cxd4 {[%clk 0:02:55.7]} 9. Ne2 {[%clk 0:02:56.3]} 9... Qb6 {[%clk
0:02:55.3]} 10. a3 {[%clk 0:02:56.1]} 10... a5 {[%clk 0:02:54.7]} 11. Kh1 {[%clk
0:02:55.1]} 11... O-O {[%clk 0:02:45.4]} 12. Nexd4 {[%clk 0:02:54.5]} 12... Nxd4
{[%clk 0:02:43.7]} 13. Nxd4 {[%clk 0:02:55.4]} 13... a4 {[%clk 0:02:39.5]} 14.
c3 {[%clk 0:02:53.5]} 14... Nc5 {[%clk 0:02:38.4]} 15. Bc2 {[%clk 0:02:53.5]}
15... g6 {[%clk 0:02:31.7]} 16. Rb1 {[%clk 0:02:52.4]} 16... Bd7 {[%clk
0:02:30.6]} 17. g4 {[%clk 0:02:46.2]} 17... f6 {[%clk 0:02:27.4]} 18. exf6
{[%clk 0:02:39.2]} 18... Bxf6 {[%clk 0:02:26.5]} 19. Be3 {[%clk 0:02:38.6]}
19... Qc7 {[%clk 0:02:15.3]} 20. f5 {[%clk 0:02:33.9]} 20... gxf5 {[%clk
0:01:17.7]} 21. gxf5 {[%clk 0:02:33.3]} 21... e5 {[%clk 0:01:17.9]} 22. Nf3
{[%clk 0:02:27.3]} 22... Kh8 {[%clk 0:01:11.3]} 23. Qxd5 {[%clk 0:02:23.6]}
23... Nb3 {[%clk 0:01:10.3]} 24. Be4 {[%clk 0:02:10.9]} 24... Bc6 {[%clk
0:01:08]} 25. Qc4 {[%clk 0:02:10.1]} 25... Na5 {[%clk 0:00:52.9]} 26. Qd3 {[%clk
0:02:10]} 26... Rad8 {[%clk 0:00:52.3]} 27. Qc2 {[%clk 0:02:10.4]} 27... Nc4
{[%clk 0:00:52.1]} 28. Bh6 {[%clk 0:02:04.4]} 28... Rg8 {[%clk 0:00:51.9]} 29.
Rg1 {[%clk 0:01:48.5]} 29... b5 {[%clk 0:00:51.6]} 30. Rxg8+ {[%clk 0:01:43.8]}
30... Rxg8 {[%clk 0:00:51]} 31. Rg1 {[%clk 0:01:43.7]} 31... Rxg1+ {[%clk
0:00:44.7]} 32. Kxg1 {[%clk 0:01:44.6]} 32... Qb7 {[%clk 0:00:44.1]} 33. Bxc6
{[%clk 0:01:22.4]} 33... Qxc6 {[%clk 0:00:45]} 34. Ng5 {[%clk 0:01:10]} 34...
Bxg5 {[%clk 0:00:33.4]} 35. Bxg5 {[%clk 0:01:08.4]} 35... Qf3 {[%clk 0:00:32.7]}
36. Bf6+ {[%clk 0:01:06.3]} 36... Kg8 {[%clk 0:00:31.7]} 37. Qg2+ {[%clk
0:00:21]} 37... Qxg2+ {[%clk 0:00:31.2]} 38. Kxg2 {[%clk 0:00:21.9]} 38... Kf7
{[%clk 0:00:31.4]} 39. Bd8 {[%clk 0:00:21.4]} 39... Nxb2 {[%clk 0:00:30.6]} 40.
Ba5 {[%clk 0:00:20.2]} 40... Nc4 {[%clk 0:00:29]} 41. Bb4 {[%clk 0:00:19.4]}
41... Ne3+ {[%clk 0:00:28.9]} 42. Kf3 {[%clk 0:00:20.3]} 42... Nxf5 {[%clk
0:00:29.8]} 43. Ke4 {[%clk 0:00:21.2]} 43... Ke6 {[%clk 0:00:29.3]} 44. Bc5
{[%clk 0:00:21.6]} 44... Nd6+ {[%clk 0:00:28.5]} 45. Kd3 {[%clk 0:00:21.5]}
45... Kd5 {[%clk 0:00:28.4]} 46. Bb4 {[%clk 0:00:19.7]} 46... Nc4 {[%clk
0:00:28.3]} 47. h4 {[%clk 0:00:19.6]} 47... h5 {[%clk 0:00:27.5]} 48. Ke2 {[%clk
0:00:20.5]} 48... Ke4 {[%clk 0:00:26.8]} 49. Bd6 {[%clk 0:00:20.3]} 0-1

[Event "*** SCC Grand Prix: Titled Tuesday Blitz"]
[Site "Chess.com"]
[Date "2020.08.25"]
[Round "8"]
[White "maximnovik"]
[Black "RobertoJBM"]
[Result "0-1"]
[WhiteElo "2481"]
[BlackElo "2650"]
[TimeControl "180+1"]
[EndTime "11:36:37 PDT"]
[Termination "RobertoJBM won by resignation"]

1. d4 {[%clk 0:03:00.9]} 1... d5 {[%clk 0:02:59.2]} 2. c4 {[%clk 0:03:00.5]}
2... c6 {[%clk 0:02:58.5]} 3. Nc3 {[%clk 0:03:00.9]} 3... dxc4 {[%clk
0:02:57.6]} 4. e4 {[%clk 0:02:58.3]} 4... e5 {[%clk 0:02:52]} 5. dxe5 {[%clk
0:02:48.6]} 5... Qxd1+ {[%clk 0:02:50.9]} 6. Nxd1 {[%clk 0:02:45.6]} 6... b5
{[%clk 0:02:50.6]} 7. f4 {[%clk 0:02:43]} 7... f6 {[%clk 0:02:48.2]} 8. Nf3
{[%clk 0:02:31.5]} 8... Bg4 {[%clk 0:02:36]} 9. exf6 {[%clk 0:02:23.9]} 9...
Nxf6 {[%clk 0:02:30.5]} 10. Nf2 {[%clk 0:02:24.4]} 10... Bxf3 {[%clk 0:02:26.5]}
11. gxf3 {[%clk 0:02:24.2]} 11... Bb4+ {[%clk 0:02:27.4]} 12. Ke2 {[%clk
0:02:19.5]} 12... Nbd7 {[%clk 0:02:22.5]} 13. Be3 {[%clk 0:02:16.6]} 13... Bc5
{[%clk 0:02:21.9]} 14. Rg1 {[%clk 0:02:14]} 14... Bxe3 {[%clk 0:02:20]} 15. Kxe3
{[%clk 0:02:13.4]} 15... O-O {[%clk 0:02:18.8]} 16. Bh3 {[%clk 0:02:11.5]} 16...
Rae8 {[%clk 0:02:17.8]} 17. Bxd7 {[%clk 0:02:05.1]} 17... Nxd7 {[%clk
0:02:17.3]} 18. Rad1 {[%clk 0:01:50.4]} 18... Nb6 {[%clk 0:02:13.2]} 19. f5
{[%clk 0:01:48]} 19... Na4 {[%clk 0:02:06.8]} 20. Rd6 {[%clk 0:01:38.3]} 20...
Rc8 {[%clk 0:02:01]} 21. f6 {[%clk 0:01:37.2]} 21... Rf7 {[%clk 0:01:44.7]} 22.
e5 {[%clk 0:01:27.6]} 22... Nxb2 {[%clk 0:01:21]} 23. Ne4 {[%clk 0:01:27.1]}
23... c3 {[%clk 0:01:16.5]} 24. Kd4 {[%clk 0:00:53.3]} 24... Nc4 {[%clk
0:01:12.4]} 25. Kxc3 {[%clk 0:00:50.4]} 25... Nxe5 {[%clk 0:01:05.9]} 26. f4
{[%clk 0:00:34]} 26... Ng6 {[%clk 0:00:39.8]} 27. f5 {[%clk 0:00:30.8]} 27...
Nf4 {[%clk 0:00:39.9]} 28. fxg7 {[%clk 0:00:19.8]} 28... Ne2+ {[%clk 0:00:38.7]}
29. Kd2 {[%clk 0:00:17.6]} 29... Nxg1 {[%clk 0:00:39.6]} 30. f6 {[%clk
0:00:17.7]} 30... Nf3+ {[%clk 0:00:34.3]} 31. Ke3 {[%clk 0:00:17.9]} 31... Ne5
{[%clk 0:00:34.4]} 32. Re6 {[%clk 0:00:16]} 32... Ng4+ {[%clk 0:00:30.5]} 33.
Kf4 {[%clk 0:00:14.9]} 33... Nxf6 {[%clk 0:00:31]} 34. Nxf6+ {[%clk 0:00:14]}
34... Kxg7 {[%clk 0:00:31.1]} 35. Ke5 {[%clk 0:00:14]} 35... Rxf6 {[%clk
0:00:17.6]} 36. Rxf6 {[%clk 0:00:13]} 36... Re8+ {[%clk 0:00:18.2]} 37. Kf5
{[%clk 0:00:12.6]} 37... Rf8 {[%clk 0:00:16]} 38. Rxf8 {[%clk 0:00:12.2]} 38...
Kxf8 {[%clk 0:00:16.9]} 39. Ke6 {[%clk 0:00:12]} 39... a5 {[%clk 0:00:17.1]} 40.
Kd6 {[%clk 0:00:12]} 40... a4 {[%clk 0:00:16.2]} 41. Kxc6 {[%clk 0:00:09.1]}
41... b4 {[%clk 0:00:16.3]} 0-1

[Event "*** SCC Grand Prix: Titled Tuesday Blitz"]
[Site "Chess.com"]
[Date "2020.08.25"]
[Round "8"]
[White "poppy73"]
[Black "Khazieva_Elza"]
[Result "0-1"]
[WhiteElo "2257"]
[BlackElo "2421"]
[TimeControl "180+1"]
[EndTime "11:36:38 PDT"]
[Termination "Khazieva_Elza won on time"]

1. e4 {[%clk 0:03:00.9]} 1... c5 {[%clk 0:02:58.9]} 2. Nf3 {[%clk 0:02:58.8]}
2... d6 {[%clk 0:02:58.7]} 3. d4 {[%clk 0:02:59]} 3... cxd4 {[%clk 0:02:59.6]}
4. Nxd4 {[%clk 0:02:59.9]} 4... Nf6 {[%clk 0:03:00.2]} 5. Nc3 {[%clk 0:03:00.2]}
5... Nc6 {[%clk 0:03:00.9]} 6. g3 {[%clk 0:02:58.3]} 6... g6 {[%clk 0:02:56.4]}
7. Bg2 {[%clk 0:02:26.2]} 7... Bd7 {[%clk 0:02:51.4]} 8. Nxc6 {[%clk 0:02:16.9]}
8... Bxc6 {[%clk 0:02:43.9]} 9. Nd5 {[%clk 0:02:07]} 9... Bg7 {[%clk 0:02:41.7]}
10. O-O {[%clk 0:02:04.5]} 10... O-O {[%clk 0:02:41.7]} 11. c4 {[%clk
0:02:03.5]} 11... Rc8 {[%clk 0:02:30.6]} 12. Qe2 {[%clk 0:02:00]} 12... e6
{[%clk 0:02:17.2]} 13. Nc3 {[%clk 0:01:53.9]} 13... Nd7 {[%clk 0:02:03.8]} 14.
Bd2 {[%clk 0:01:40.4]} 14... b6 {[%clk 0:01:56.5]} 15. Rad1 {[%clk 0:01:37.4]}
15... Qe7 {[%clk 0:01:49.5]} 16. Bf4 {[%clk 0:01:23.2]} 16... Ne5 {[%clk
0:01:44.8]} 17. Bxe5 {[%clk 0:01:06.5]} 17... dxe5 {[%clk 0:01:31.7]} 18. b3
{[%clk 0:01:03.7]} 18... Rfd8 {[%clk 0:01:26.3]} 19. Rxd8+ {[%clk 0:01:02.5]}
19... Rxd8 {[%clk 0:01:25.2]} 20. Rd1 {[%clk 0:01:03.1]} 20... Bf6 {[%clk
0:01:18.4]} 21. Bf1 {[%clk 0:00:53]} 21... Rd4 {[%clk 0:01:15.7]} 22. Rxd4
{[%clk 0:00:38.3]} 22... exd4 {[%clk 0:01:15.1]} 23. Nb5 {[%clk 0:00:39.2]}
23... a6 {[%clk 0:01:07.6]} 24. e5 {[%clk 0:00:36.8]} 24... axb5 {[%clk
0:00:52.3]} 25. cxb5 {[%clk 0:00:23.9]} 25... Bd5 {[%clk 0:00:34.7]} 26. exf6
{[%clk 0:00:21.2]} 26... Qxf6 {[%clk 0:00:35.6]} 27. Bg2 {[%clk 0:00:19.4]}
27... Qf5 {[%clk 0:00:21]} 28. Bxd5 {[%clk 0:00:06]} 28... Qxd5 {[%clk
0:00:21.9]} 29. Qd3 {[%clk 0:00:05.4]} 29... e5 {[%clk 0:00:21.7]} 30. f3 {[%clk
0:00:05.2]} 30... Qc5 {[%clk 0:00:20]} 31. Qc4 {[%clk 0:00:03.9]} 31... Qd6
{[%clk 0:00:16.3]} 32. Qd3 {[%clk 0:00:02.6]} 32... Qa3 {[%clk 0:00:16]} 33. Qc2
{[%clk 0:00:01.5]} 33... Qb4 {[%clk 0:00:12.2]} 34. Qc4 {[%clk 0:00:01.3]} 34...
Qe1+ {[%clk 0:00:11.6]} 0-1

[Event "*** SCC Grand Prix: Titled Tuesday Blitz"]
[Site "Chess.com"]
[Date "2020.08.25"]
[Round "8"]
[White "BillieKimbah"]
[Black "hansen"]
[Result "1-0"]
[WhiteElo "2906"]
[BlackElo "2949"]
[TimeControl "180+1"]
[EndTime "11:36:43 PDT"]
[Termination "BillieKimbah won on time"]

1. d4 {[%clk 0:03:00.9]} 1... Nf6 {[%clk 0:02:58.3]} 2. Nf3 {[%clk 0:03:01.2]}
2... d5 {[%clk 0:02:56.7]} 3. Bg5 {[%clk 0:03:00.9]} 3... e6 {[%clk 0:02:17.1]}
4. e3 {[%clk 0:02:59.7]} 4... c5 {[%clk 0:02:16.6]} 5. Nbd2 {[%clk 0:02:59]}
5... Bd6 {[%clk 0:02:12.3]} 6. dxc5 {[%clk 0:02:40.2]} 6... Bxc5 {[%clk
0:02:12]} 7. c4 {[%clk 0:02:40.8]} 7... O-O {[%clk 0:02:11.4]} 8. cxd5 {[%clk
0:02:28.3]} 8... Qxd5 {[%clk 0:02:11]} 9. Bxf6 {[%clk 0:02:24.9]} 9... gxf6
{[%clk 0:02:10.9]} 10. Bc4 {[%clk 0:02:24.4]} 10... Qd8 {[%clk 0:02:04.8]} 11.
O-O {[%clk 0:02:15.8]} 11... Nc6 {[%clk 0:02:04.3]} 12. Qc2 {[%clk 0:02:14.1]}
12... Be7 {[%clk 0:01:55.5]} 13. Rfd1 {[%clk 0:02:09.8]} 13... Qa5 {[%clk
0:01:36.1]} 14. a3 {[%clk 0:02:05]} 14... Rd8 {[%clk 0:01:34.7]} 15. Ne4 {[%clk
0:01:59.1]} 15... Bd7 {[%clk 0:01:30]} 16. b4 {[%clk 0:01:48.7]} 16... Qh5
{[%clk 0:01:22]} 17. Nd6 {[%clk 0:01:07.7]} 17... Rab8 {[%clk 0:00:57.5]} 18.
Be2 {[%clk 0:01:03.1]} 18... Qg6 {[%clk 0:00:52.2]} 19. Qb3 {[%clk 0:01:01.8]}
19... a6 {[%clk 0:00:38.3]} 20. Rd2 {[%clk 0:00:58.8]} 20... Ne5 {[%clk
0:00:33.7]} 21. Nxe5 {[%clk 0:00:48.4]} 21... fxe5 {[%clk 0:00:33.7]} 22. Bf3
{[%clk 0:00:43.4]} 22... Bxd6 {[%clk 0:00:15.4]} 23. Rxd6 {[%clk 0:00:44.3]}
23... e4 {[%clk 0:00:12.4]} 24. Be2 {[%clk 0:00:38.9]} 24... Bb5 {[%clk
0:00:12.1]} 25. Rxd8+ {[%clk 0:00:33.2]} 25... Rxd8 {[%clk 0:00:13]} 26. Bxb5
{[%clk 0:00:27.5]} 26... axb5 {[%clk 0:00:13.9]} 27. Rd1 {[%clk 0:00:17.9]}
27... Rd3 {[%clk 0:00:13.5]} 28. Qc2 {[%clk 0:00:15.9]} 28... Qf5 {[%clk
0:00:11.8]} 29. g3 {[%clk 0:00:14.1]} 29... Qd5 {[%clk 0:00:11.6]} 30. Rc1
{[%clk 0:00:12.8]} 30... h5 {[%clk 0:00:12]} 31. Qc7 {[%clk 0:00:12.1]} 31...
Qf5 {[%clk 0:00:08]} 32. Qf4 {[%clk 0:00:09.5]} 32... Qxf4 {[%clk 0:00:06.2]}
33. gxf4 {[%clk 0:00:10]} 33... Rxa3 {[%clk 0:00:05.5]} 34. Rc5 {[%clk
0:00:10.1]} 34... h4 {[%clk 0:00:05.7]} 35. Kg2 {[%clk 0:00:10.3]} 35... f5
{[%clk 0:00:05.2]} 36. Rxb5 {[%clk 0:00:10.1]} 36... Ra2 {[%clk 0:00:05.3]} 37.
Rxb7 {[%clk 0:00:09.7]} 37... h3+ {[%clk 0:00:02.3]} 38. Kg3 {[%clk 0:00:09.4]}
38... Kf8 {[%clk 0:00:02.7]} 39. b5 {[%clk 0:00:09.7]} 39... Ke8 {[%clk
0:00:02.9]} 40. b6 {[%clk 0:00:09.8]} 40... Rb2 {[%clk 0:00:03.4]} 41. Kxh3
{[%clk 0:00:09.2]} 1-0